fUSD/lending_fUSD_20260106
["ID","MTS","AMOUNT","RATE_DAILY","PERIOD"]
[400578535,1767731440512,-500.0,0.00016438,2]
[400578537,1767731440526,-500.0,0.00016438,2]
[400578539,1767731440536,-500.0,0.00016438,2]
[400578541,1767731440546,-500.0,0.00016438,2]
[400578544,1767731440555,-500.0,0.00016438,2]
[400578546,1767731440565,-500.0,0.00016438,2]
[400578548,1767731440574,-500.0,0.00016438,2]
[400578549,1767731440583,-500.0,0.00016438,2]
[400578551,1767731440595,-500.0,0.00016438,2]
[400578553,1767731440604,-500.0,0.00016438,2]
[400578556,1767731440613,-235.76224885,0.00016438,2]
[400578557,1767731440622,-500.0,0.00016438,2]
[400578559,1767731440631,-500.0,0.00016438,2]
[400578561,1767731440640,-500.0,0.00016438,2]
[400578563,1767731440650,-500.0,0.00016438,2]
[400578565,1767731440660,-500.0,0.00016438,2]
[400578567,1767731440670,-500.0,0.00016438,2]
[400578569,1767731440679,-550.0,0.00016438,2]
[400578571,1767731440689,-500.0,0.00016438,2]
[400578573,1767731440698,-500.0,0.00016438,2]
[400578575,1767731440707,-500.0,0.00016438,2]
[400578577,1767731440716,-500.0,0.00016438,2]
[400578579,1767731440726,-500.0,0.00016438,2]
[400578581,1767731440735,-500.0,0.00016438,2]
[400578583,1767731440744,-225.97626085,0.00016438,2]
[400578585,1767731440754,-500.0,0.00016438,2]
[400578587,1767731440763,-500.0,0.00016438,2]
[400578589,1767731440771,-500.0,0.00016438,2]
[400578591,1767731440780,-3726.04,0.00016438,2]
[400578593,1767731440789,-14708.94092439,0.00016468,2]
[400578595,1767731440798,-973.39,0.00016492,2]
[400578597,1767731440807,-6323.94648129,0.00016571,2]
[400578599,1767731440816,-151.0,0.00016581,2]
[400578601,1767731440826,-151.0,0.00016607,2]
[400578603,1767731440835,-151.0,0.00016608,2]
[400578605,1767731440844,-14708.94092439,0.00016673,2]
[400578607,1767731440853,-1411.81,0.00016706,2]
[400578609,1767731440862,-500.0,0.00016706,2]
[400578611,1767731440871,-500.0,0.00016776,2]
[400578613,1767731440880,-6323.94648129,0.00016827,2]
[400578615,1767731440890,-14708.94092439,0.00016877,2]
[400578617,1767731440899,-1411.81,0.0001698,2]
[400578619,1767731440908,-2642.53,0.00017063,2]
[400578621,1767731440918,-250.0,0.00017075,2]
[400578623,1767731440927,-14708.94092439,0.00017082,2]
[400578625,1767731440936,-6323.94648129,0.00017083,2]
[400578627,1767731440945,-699.01740034,0.00017089,2]
[400578629,1767731440954,-1411.81,0.00017254,2]
[400578632,1767731440967,-165.25,0.00017266,2]
[400578634,1767731440977,-14708.94092439,0.00017286,2]
[400578636,1767731440986,-6323.94648129,0.00017339,2]
[400578638,1767731440995,-420.0,0.00017448,2]
[400578640,1767731441004,-420.0,0.00017448,2]
[400578642,1767731441013,-172.97,0.00017453,2]
[400578644,1767731441022,-14708.94092439,0.00017491,2]
[400578646,1767731441031,-1600.62354172,0.000175,2]
[400578648,1767731441040,-1411.81,0.00017528,2]
[400578650,1767731441049,-1680.0,0.00017536,2]
[400578652,1767731441059,-250.0,0.00017555,2]
[400578654,1767731441068,-6323.94648129,0.00017595,2]
[400578656,1767731441077,-195.0,0.00017654,2]
[400578658,1767731441086,-311.58451508,0.00017654,2]
[400578660,1767731441095,-225.49170008,0.00017664,2]
[400578662,1767731441104,-2579.01844883,0.00017664,2]
[400578664,1767731441117,-195.0,0.00017664,2]
[400578666,1767731441126,-300.0,0.00017664,2]
[400578668,1767731441135,-250.0,0.00017664,2]
[400578670,1767731441144,-300.0,0.00017664,2]
[400578672,1767731441153,-600.0,0.00017664,2]
[400578674,1767731441163,-600.0,0.00017664,2]
[400578676,1767731441172,-195.0,0.00017664,2]
[400578678,1767731441181,-300.0,0.00017664,2]
[400578680,1767731441190,-14708.94092439,0.00017695,2]
[400578682,1767731441199,-151.25904371,0.000177,2]
[400578684,1767731441208,-305.71308607,0.000177,5]
[400578686,1767731441217,-600.0,0.00017764,2]
[400578688,1767731441226,-195.0,0.00017764,2]
[400578690,1767731441235,-302.33857604,0.00017764,2]
[400578692,1767731441244,-300.0,0.00017764,2]
[400578694,1767731441253,-2500.0,0.00017764,2]
[400578696,1767731441263,-193.0,0.00017764,2]
[400578698,1767731441272,-301.16616672,0.000178,2]
[400578700,1767731441281,-1411.81,0.00017802,2]
[400578702,1767731441290,-6323.94648129,0.00017851,2]
[400578704,1767731441300,-178.61513244,0.000179,3]
[400578706,1767731441310,-14708.94092439,0.000179,2]
[400578708,1767731441320,-3088.29445146,0.000179,2]
[400578710,1767731441329,-500.0,0.00017973,2]
[400578712,1767731441338,-500.0,0.00017973,2]
[400578714,1767731441347,-470.36063607,0.00017973,2]
[400578716,1767731441356,-500.0,0.00017973,2]
[400578718,1767731441365,-500.0,0.00017973,2]
[400578720,1767731441374,-500.0,0.00017973,2]
[400578722,1767731441383,-500.0,0.00017973,2]
[400578724,1767731441393,-500.0,0.00017973,2]
[400578726,1767731441402,-500.0,0.00017973,2]
[400578728,1767731441413,-500.0,0.00017973,2]
[400578730,1767731441422,-500.0,0.00017973,2]
[400578733,1767731441432,-172.97755779,0.00017973,2]
[400578735,1767731441441,-500.0,0.00017973,2]
[400578737,1767731441450,-500.0,0.00017973,2]
[400578739,1767731441459,-500.0,0.00017973,2]
[400578741,1767731441473,-500.0,0.00017973,2]
[400578743,1767731441482,-500.0,0.00017973,2]
[400578745,1767731441491,-500.0,0.00017973,2]
[400578747,1767731441500,-500.0,0.00017973,2]
[400578748,1767731441509,-500.0,0.00017973,2]
[400578751,1767731441519,-165.79599831,0.00017973,2]
[400578752,1767731441532,-500.0,0.00017973,2]
[400578754,1767731441541,-163.4765101,0.00017973,2]
[400578757,1767731441550,-500.0,0.00017973,2]
[400578759,1767731441560,-501.12875633,0.00017973,2]
[400578760,1767731441569,-500.0,0.00017973,2]
[400578762,1767731441579,-500.0,0.00017973,2]
[400578764,1767731441588,-500.0,0.00017973,2]
[400578766,1767731441599,-500.0,0.00017973,2]
[400578768,1767731441608,-500.0,0.00017973,2]
[400578770,1767731441617,-500.0,0.00017973,2]
[400578772,1767731441627,-500.0,0.00017973,2]
[400578774,1767731441637,-500.0,0.00017973,2]
[400578777,1767731441647,-504.5156651,0.00017973,2]
[400578779,1767731441657,-316.26386303,0.00017973,2]
[400578781,1767731441666,-500.77367264,0.00017973,2]
[400578783,1767731441676,-216.85816302,0.00017973,2]
[400578784,1767731441685,-501.25433078,0.00017973,2]
[400578786,1767731441695,-501.42268464,0.00017973,2]
[400578789,1767731441704,-165.66093184,0.00017973,2]
[400578790,1767731441713,-646.9877349,0.0001799,2]
[400578793,1767731441723,-646.9877349,0.0001799,2]
[400578794,1767731441732,-300.0,0.00017999,2]
[400578797,1767731441742,-666.0,0.00017999,2]
[400578799,1767731441751,-300.0,0.00017999,2]
[400578801,1767731441760,-300.0,0.00017999,2]
[400578803,1767731441770,-666.0,0.00017999,2]
[400578805,1767731441779,-300.0,0.00017999,2]
[400578807,1767731441788,-3878785.9667195,0.00018,2]
[400578809,1767731441803,-1242063.91477946,0.00018,2]
[400578810,1767731441813,-150374.43054705,0.00018,2]
[400578811,1767731441823,-1411.81,0.00018076,2]
[400578812,1767731441832,-6323.94648129,0.00018107,2]
[400578813,1767731441841,-1411.81,0.0001835,2]
[400578814,1767731441850,-6323.94648129,0.00018363,2]
[400578815,1767731441860,-490.09,0.00018463,2]
[400578816,1767731441868,-911.41313033,0.00018521,2]
[400578817,1767731441878,-665.44014237,0.00018521,2]
[400578818,1767731441887,-228.36321658,0.00018521,2]
[400578819,1767731441896,-1000.0,0.00018521,2]
[400578820,1767731441905,-1000.0,0.00018521,2]
[400578821,1767731441914,-1000.0,0.00018521,2]
[400578823,1767731441923,-505.83293522,0.00018521,2]
[400578825,1767731441932,-1000.0,0.00018521,2]
[400578827,1767731441941,-1000.0,0.00018521,2]
[400578830,1767731441951,-1000.0,0.00018521,2]
[400578831,1767731441960,-1000.0,0.00018521,2]
[400578833,1767731441969,-1000.0,0.00018521,2]
[400578835,1767731441978,-1000.0,0.00018521,2]
[400578837,1767731441987,-1000.0,0.00018521,2]
[400578839,1767731441996,-1000.0,0.00018521,2]
[400578841,1767731442005,-1000.0,0.00018521,2]
[400578843,1767731442014,-823.32929803,0.00018521,2]
[400578846,1767731442024,-1000.0,0.00018521,2]
[400578847,1767731442033,-1000.0,0.00018521,2]
[400578849,1767731442042,-1000.0,0.00018521,2]
[400578852,1767731442052,-543.38282097,0.00018521,2]
[400578854,1767731442061,-1000.0,0.00018521,2]
[400578855,1767731442070,-1018.39951694,0.00018521,2]
[400578857,1767731442079,-502.24390153,0.00018521,2]
[400578860,1767731442089,-311.0243279,0.00018521,2]
[400578861,1767731442099,-403.01772086,0.00018521,2]
[400578863,1767731442108,-502.72217232,0.00018521,2]
[400578866,1767731442117,-1411.81,0.00018624,2]
[400578867,1767731442127,-172.97,0.000187,2]
[400578870,1767731442136,-1411.81,0.00018898,2]
[400578871,1767731442145,-288.0,0.00018992,2]
[400578873,1767731442155,-500.9026043,0.00019068,2]
[400578875,1767731442164,-1500.0,0.00019068,2]
[400578877,1767731442173,-1452.6197142,0.00019068,2]
[400578879,1767731442182,-1500.0,0.00019068,2]
[400578881,1767731442192,-1500.0,0.00019068,2]
[400578883,1767731442202,-1502.40698527,0.00019068,2]
[400578885,1767731442211,-1501.17648911,0.00019068,2]
[400578887,1767731442220,-1501.06710829,0.00019068,2]
[400578889,1767731442229,-1500.0,0.00019068,2]
[400578892,1767731442239,-505.89055766,0.00019068,2]
[400578893,1767731442248,-1500.0,0.00019068,2]
[400578896,1767731442258,-1500.0,0.00019068,2]
[400578897,1767731442269,-1501.25165524,0.00019068,2]
[400578900,1767731442279,-1501.48054044,0.00019068,2]
[400578901,1767731442288,-516.59149792,0.00019068,2]
[400578904,1767731442299,-587.0,0.00019077,2]
[400578905,1767731442309,-262.0,0.00019077,2]
[400578907,1767731442318,-288.0,0.00019106,2]
[400578910,1767731442329,-288.0,0.00019138,2]
[400578912,1767731442342,-1411.81,0.00019172,2]
[400578913,1767731442362,-288.0,0.00019259,2]
[400578915,1767731442373,-2351.0,0.0001927,2]
[400578917,1767731442382,-288.0,0.00019285,2]
[400578919,1767731442391,-288.0,0.00019386,2]
[400578921,1767731442402,-188.88498862,0.00019386,2]
[400578923,1767731442423,-288.0,0.0001942,2]
[400578925,1767731442441,-1411.81,0.00019445,2]
[400578927,1767731442450,-288.0,0.00019459,2]
[400578929,1767731442459,-288.0,0.00019483,2]
[400578931,1767731442469,-288.0,0.00019515,2]
[400578933,1767731442478,-2857.99,0.00019516,2]
[400578935,1767731442488,-155.55,0.00019559,2]
[400578937,1767731442497,-500.0,0.00019616,2]
[400578939,1767731442507,-500.0,0.00019616,2]
[400578941,1767731442517,-1503.93563554,0.00019616,2]
[400578943,1767731442529,-702.51911864,0.00019616,2]
[400578945,1767731442541,-2000.0,0.00019616,2]
[400578947,1767731442550,-288.0,0.00019661,2]
[400578949,1767731442562,-1411.81,0.00019719,2]
[400578951,1767731442571,-288.0,0.00019792,2]
[400578953,1767731442581,-288.0,0.00019911,2]
[400578955,1767731442591,-300.0,0.00019972,2]
[400578957,1767731442600,-621.72362606,0.00019972,2]
[400578959,1767731442610,-500.0,0.00019972,2]
[400578961,1767731442619,-500.0,0.00019972,2]
[400578963,1767731442628,-500.0,0.00019973,2]
[400578965,1767731442637,-500.815548,0.00019973,2]
[400578967,1767731442646,-500.0,0.00019973,2]
[400578969,1767731442656,-500.0,0.00019973,2]
[400578971,1767731442666,-335.39255931,0.00019973,2]
[400578973,1767731442675,-500.0,0.00019973,2]
[400578975,1767731442684,-500.0,0.00019973,2]
[400578977,1767731442694,-500.0,0.00019973,2]
[400578979,1767731442704,-500.0,0.00019973,2]
[400578981,1767731442713,-500.0,0.00019973,2]
[400578983,1767731442722,-500.0,0.00019973,2]
[400578985,1767731442732,-557.25951584,0.00019973,2]
[400578987,1767731442741,-500.0,0.00019973,2]
[400578989,1767731442750,-500.0,0.00019973,2]
[400578992,1767731442759,-162.42481465,0.00019973,2]
[400578995,1767731442768,-500.0,0.00019973,2]
[400578998,1767731442778,-500.0,0.00019973,2]
[400579002,1767731442788,-501.86729539,0.00019973,2]
[400579006,1767731442798,-500.0,0.00019973,2]
[400579008,1767731442807,-500.0,0.00019973,2]
[400579010,1767731442816,-500.0,0.00019973,2]
[400579012,1767731442825,-500.0,0.00019973,2]
[400579014,1767731442836,-162.64594824,0.00019973,2]
[400579016,1767731442845,-500.0,0.00019973,2]
[400579018,1767731442855,-162.75708807,0.00019973,2]
[400579020,1767731442864,-500.0,0.00019973,2]
[400579022,1767731442873,-500.0,0.00019973,2]
[400579024,1767731442883,-500.0,0.00019973,2]
[400579026,1767731442892,-500.0,0.00019973,2]
[400579028,1767731442901,-427.65194977,0.00019973,2]
[400579030,1767731442910,-156.89496894,0.00019973,2]
[400579032,1767731442920,-501.03208473,0.00019973,2]
[400579034,1767731442929,-500.0,0.00019973,2]
[400579036,1767731442939,-500.0,0.00019973,2]
[400579038,1767731442948,-500.0,0.00019973,2]
[400579040,1767731442957,-500.0,0.00019973,2]
[400579042,1767731442967,-500.0,0.00019973,2]
[400579044,1767731442976,-571.61330735,0.00019973,2]
[400579046,1767731442985,-500.0,0.00019973,2]
[400579048,1767731442995,-500.0,0.00019973,2]
[400579050,1767731443004,-500.0,0.00019973,2]
[400579052,1767731443013,-510.73735296,0.00019973,2]
[400579069,1767731443147,-500.0,0.00019973,2]
[400579072,1767731443172,-178.52671345,0.00019973,2]
[400579074,1767731443181,-510.33159281,0.00019973,2]
[400579076,1767731443190,-500.0,0.00019973,2]
[400579078,1767731443199,-500.0,0.00019973,2]
[400579080,1767731443209,-507.38261444,0.00019973,2]
[400579082,1767731443218,-500.0,0.00019973,2]
[400579084,1767731443227,-169.01681291,0.00019973,2]
[400579086,1767731443235,-500.0,0.00019973,2]
[400579088,1767731443244,-500.0,0.00019973,2]
[400579090,1767731443253,-500.0,0.00019973,2]
[400579092,1767731443263,-167.31133184,0.00019973,2]
[400579093,1767731443272,-469.65305736,0.00019973,2]
[400579096,1767731443282,-500.0,0.00019973,2]
[400579098,1767731443291,-500.0,0.00019973,2]
[400579100,1767731443300,-500.0,0.00019973,2]
[400579102,1767731443309,-500.0,0.00019973,2]
[400579103,1767731443318,-308.02826379,0.00019973,2]
[400579105,1767731443327,-162.01757701,0.00019973,2]
[400579107,1767731443336,-283.2821344,0.00019973,2]
[400579109,1767731443346,-500.0,0.00019973,2]
[400579112,1767731443355,-520.05691851,0.00019973,2]
[400579113,1767731443365,-500.0,0.00019973,2]
[400579115,1767731443374,-500.0,0.00019973,2]
[400579117,1767731443383,-500.0,0.00019973,2]
[400579119,1767731443392,-500.0,0.00019973,2]
[400579122,1767731443403,-500.0,0.00019973,2]
[400579124,1767731443413,-500.0,0.00019973,2]
[400579126,1767731443422,-207.95982473,0.00019973,2]
[400579128,1767731443431,-500.0,0.00019973,2]
[400579130,1767731443440,-524.23019632,0.00019973,2]
[400579133,1767731443450,-165.9677284,0.00019973,2]
[400579135,1767731443459,-500.0,0.00019973,2]
[400579137,1767731443468,-500.0,0.00019973,2]
[400579139,1767731443477,-500.0,0.00019973,2]
[400579141,1767731443487,-500.0,0.00019973,2]
[400579143,1767731443496,-500.0,0.00019973,2]
[400579145,1767731443505,-500.0,0.00019973,2]
[400579147,1767731443514,-165.23613821,0.00019973,2]
[400579149,1767731443526,-161.4599478,0.00019973,2]
[400579151,1767731443535,-164.10524853,0.00019973,2]
[400579153,1767731443544,-500.0,0.00019973,2]
[400579154,1767731443553,-160.57760784,0.00019973,2]
[400579156,1767731443563,-375.23723038,0.00019973,2]
[400579158,1767731443572,-500.0,0.00019973,2]
[400579161,1767731443582,-500.0,0.00019973,2]
[400579163,1767731443594,-1411.81,0.00019993,2]
[400579165,1767731443603,-288.0,0.00019996,2]
[400579167,1767731443611,-1557.97021985,0.0002,2]
[400579169,1767731443621,-1000.0,0.0002,7]
[400579171,1767731443630,-500.0,0.00020164,2]
[400579172,1767731443639,-423.34607416,0.00020198,2]
[400579174,1767731443649,-288.0,0.00020297,2]
[400579176,1767731443658,-288.0,0.0002036,2]
[400579178,1767731443669,-288.0,0.00020412,2]
[400579180,1767731443678,-535.0444925,0.00020421,2]
[400579182,1767731443687,-2629.6,0.00020514,2]
[400579184,1767731443696,-490.09,0.00020515,2]
[400579186,1767731443705,-500.0,0.00020521,2]
[400579188,1767731443714,-501.23557453,0.00020521,2]
[400579190,1767731443724,-168.23151009,0.00020521,2]
[400579193,1767731443733,-194.75564205,0.00020521,2]
[400579195,1767731443742,-500.0,0.00020521,2]
[400579197,1767731443752,-500.0,0.00020521,2]
[400579199,1767731443761,-500.0,0.00020521,2]
[400579201,1767731443770,-500.0,0.00020521,2]
[400579203,1767731443779,-500.0,0.00020521,2]
[400579205,1767731443788,-500.0,0.00020521,2]
[400579207,1767731443797,-251.33131614,0.00020521,2]
[400579209,1767731443806,-500.0,0.00020521,2]
[400579211,1767731443815,-278.74307495,0.00020521,2]
[400579213,1767731443824,-502.1413462,0.00020521,2]
[400579215,1767731443833,-609.74056714,0.00020521,2]
[400579216,1767731443843,-502.49264385,0.00020521,2]
[400579219,1767731443852,-501.63805669,0.00020521,2]
[400579221,1767731443861,-501.80133241,0.00020521,2]
[400579223,1767731443870,-500.0,0.00020521,2]
[400579225,1767731443879,-500.0,0.00020521,2]
[400579227,1767731443888,-500.61424225,0.00020521,2]
[400579229,1767731443897,-500.26532102,0.00020521,2]
[400579231,1767731443906,-1000.0,0.00020521,2]
[400579233,1767731443915,-502.10638129,0.00020521,2]
[400579235,1767731443924,-910.11880643,0.00020521,2]
[400579237,1767731443933,-514.89956747,0.00020521,2]
[400579239,1767731443943,-857.00858339,0.00020521,2]
[400579241,1767731443952,-501.82128639,0.00020521,2]
[400579242,1767731443961,-500.801884,0.00020521,2]
[400579244,1767731443970,-577.63829625,0.00020521,2]
[400579247,1767731443979,-500.0,0.00020521,2]
[400579248,1767731443989,-1000.0,0.00020521,2]
[400579251,1767731443998,-1000.0,0.00020521,2]
[400579252,1767731444007,-182.50256145,0.00020521,2]
[400579254,1767731444016,-397.67768692,0.00020521,2]
[400579257,1767731444025,-1000.0,0.00020521,2]
[400579259,1767731444035,-1001.29131145,0.00020521,2]
[400579261,1767731444043,-1000.0,0.00020521,2]
[400579263,1767731444054,-1001.24603773,0.00020521,2]
[400579264,1767731444064,-1011.19854706,0.00020521,2]
[400579267,1767731444073,-286.52563142,0.00020521,2]
[400579268,1767731444082,-372.49405725,0.00020521,2]
[400579271,1767731444091,-1000.0,0.00020521,2]
[400579272,1767731444101,-1000.0,0.00020521,2]
[400579275,1767731444110,-1000.0,0.00020521,2]
[400579277,1767731444120,-1000.0,0.00020521,2]
[400579279,1767731444130,-1000.0,0.00020521,2]
[400579281,1767731444139,-1000.0,0.00020521,2]
[400579283,1767731444148,-1000.0,0.00020521,2]
[400579285,1767731444157,-1000.0,0.00020521,2]
[400579287,1767731444167,-1000.0,0.00020521,2]
[400579289,1767731444175,-1000.0,0.00020521,2]
[400579291,1767731444184,-554.45007798,0.00020521,2]
[400579293,1767731444193,-1001.32610001,0.00020521,2]
[400579295,1767731444203,-570.38444001,0.00020521,2]
[400579297,1767731444213,-545.59988784,0.00020521,2]
[400579299,1767731444223,-1000.0,0.00020521,2]
[400579301,1767731444233,-288.0,0.00020559,2]
[400579303,1767731444242,-288.0,0.00020574,2]
[400579305,1767731444252,-288.0,0.00020679,2]
[400579307,1767731444261,-288.0,0.00020761,2]
[400579309,1767731444271,-288.0,0.00020771,2]
[400579311,1767731444279,-288.0,0.00020844,2]
[400579313,1767731444288,-823.0,0.00020859,2]
[400579315,1767731444298,-646.9877349,0.0002089,2]
[400579317,1767731444307,-288.0,0.00020891,2]
[400579319,1767731444317,-9917.98808771,0.000209,30]
[400579321,1767731444325,-288.0,0.00020945,2]
[400579323,1767731444334,-300.0,0.00020989,2]
[400579325,1767731444343,-300.0,0.00020989,2]
[400579327,1767731444353,-666.0,0.00020989,2]
[400579329,1767731444362,-88633.61896329,0.0002099,2]
[400579331,1767731444377,-1191.16510258,0.00021,2]
[400579333,1767731444387,-196.61170439,0.00021,2]
[400579335,1767731444396,-160.0,0.00021,7]
[400579338,1767731444408,-1002.71068525,0.00021068,2]
[400579340,1767731444417,-500.0,0.00021068,2]
[400579342,1767731444426,-1500.0,0.00021068,2]
[400579344,1767731444436,-503.85283249,0.00021068,2]
[400579346,1767731444445,-506.39418911,0.00021068,2]
[400579348,1767731444456,-500.0,0.00021068,2]
[400579350,1767731444467,-640.98789269,0.00021068,2]
[400579352,1767731444478,-501.21488025,0.00021068,2]
[400579354,1767731444487,-380.26169935,0.00021068,2]
[400579355,1767731444497,-164.1404911,0.00021068,2]
[400579357,1767731444506,-699.12605601,0.00021068,2]
[400579359,1767731444517,-300.62207839,0.00021068,2]
[400579361,1767731444530,-442.24,0.00021112,2]
[400579364,1767731444539,-1646.0,0.00021175,2]
[400579366,1767731444549,-250.0,0.00021206,2]
[400579368,1767731444559,-442.24,0.00021386,2]
[400579369,1767731444570,-395.72,0.00021446,2]
[400579372,1767731444580,-57438.65090699,0.000215,2]
[400579374,1767731444590,-221.7670119,0.000215,2]
[400579376,1767731444602,-1775.12436298,0.00021616,2]
[400579378,1767731444612,-442.24,0.0002166,2]
[400579380,1767731444621,-3736.4505,0.00021818,2]
[400579382,1767731444631,-5000.0,0.00021918,2]
[400579384,1767731444641,-500.0,0.00021918,2]
[400579386,1767731444651,-500.0,0.00021918,2]
[400579388,1767731444661,-500.0,0.00021918,2]
[400579390,1767731444671,-500.0,0.00021918,2]
[400579392,1767731444681,-500.0,0.00021918,2]
[400579394,1767731444691,-500.0,0.00021918,2]
[400579395,1767731444700,-317.54575972,0.00021918,2]
[400579396,1767731444710,-500.0,0.00021918,2]
[400579397,1767731444719,-500.0,0.00021918,2]
[400579398,1767731444729,-500.0,0.00021918,2]
[400579399,1767731444738,-500.0,0.00021918,2]
[400579400,1767731444752,-500.0,0.00021918,2]
[400579401,1767731444762,-500.0,0.00021918,2]
[400579402,1767731444772,-500.0,0.00021918,2]
[400579403,1767731444782,-500.0,0.00021918,2]
[400579404,1767731444791,-500.0,0.00021918,2]
[400579406,1767731444801,-500.0,0.00021918,2]
[400579408,1767731444811,-500.0,0.00021918,2]
[400579410,1767731444820,-500.0,0.00021918,2]
[400579412,1767731444830,-500.0,0.00021918,2]
[400579414,1767731444839,-500.0,0.00021918,2]
[400579416,1767731444847,-500.0,0.00021918,2]
[400579418,1767731444856,-500.0,0.00021918,2]
[400579420,1767731444867,-500.0,0.00021918,2]
[400579422,1767731444877,-500.0,0.00021918,2]
[400579424,1767731444886,-500.0,0.00021918,2]
[400579426,1767731444899,-500.0,0.00021918,2]
[400579428,1767731444908,-200.0,0.00021918,2]
[400579430,1767731444919,-500.0,0.00021918,2]
[400579432,1767731444931,-500.0,0.00021918,2]
[400579435,1767731444941,-500.0,0.00021918,2]
[400579437,1767731444954,-500.0,0.00021918,2]
[400579439,1767731444964,-399.57108271,0.00021918,2]
[400579441,1767731444974,-4950.34,0.0002192,2]
[400579443,1767731444983,-4950.34,0.0002192,2]
[400579445,1767731444995,-4950.34,0.0002192,2]
[400579447,1767731445014,-4950.34,0.0002192,2]
[400579449,1767731445023,-4950.34,0.0002192,2]
[400579451,1767731445032,-300.0,0.00021999,2]
[400579453,1767731445042,-300.0,0.00021999,2]
[400579455,1767731445053,-666.0,0.00021999,2]
[400579457,1767731445062,-68324.11,0.00022,2]
[400579459,1767731445072,-368743.64605885,0.00022,4]
[400579461,1767731445082,-796.24110571,0.00022,7]
[400579463,1767731445091,-163.53,0.00022,2]
[400579465,1767731445102,-4736.98,0.000222,7]
[400579467,1767731445111,-490.09,0.00022566,2]
[400579469,1767731445122,-2629.6,0.000226,2]
[400579472,1767731445131,-1050.0,0.00022807,2]
[400579474,1767731445141,-634.47337124,0.00023,7]
[400579476,1767731445151,-552.45242198,0.00023,2]
[400579478,1767731445160,-500.0,0.00023061,2]
[400579480,1767731445175,-562.37594592,0.00023061,2]
[400579482,1767731445184,-500.0,0.00023061,2]
[400579484,1767731445194,-13334.25092018,0.00024,2]
[400579486,1767731445203,-1019.54915216,0.00024,2]
[400579488,1767731445213,-423.34607416,0.00024059,2]
[400579490,1767731445222,-535.04449244,0.00024245,2]
[400579492,1767731445232,-490.09,0.00024618,2]
[400579494,1767731445241,-167.3160803,0.0002465,2]
[400579496,1767731445251,-3240.0,0.00024658,2]
[400579498,1767731445260,-1000.0,0.00024658,2]
[400579501,1767731445271,-362.92767532,0.00024658,4]
[400579503,1767731445280,-2629.6,0.00024687,2]
[400579505,1767731445290,-300.0,0.00024799,10]
[400579507,1767731445299,-300.0,0.00024799,10]
[400579509,1767731445309,-326406.266169,0.000248,3]
[400579511,1767731445318,-723.90239833,0.00024812,2]
[400579513,1767731445328,-151.0,0.00024897,7]
[400579515,1767731445337,-300.0,0.00024899,10]
[400579517,1767731445347,-500.0,0.00024899,2]
[400579519,1767731445356,-58414.2781895,0.000249,3]
[400579521,1767731445368,-32524.65134612,0.00025,2]
[400579523,1767731445379,-7338.70391394,0.00025,5]
[400579525,1767731445389,-170.24883339,0.00025,5]
[400579528,1767731445406,-531.0,0.00025,5]
[400579530,1767731445418,-614.0,0.00025609,2]
[400579532,1767731445427,-3475.321,0.00025609,2]
[400579534,1767731445436,-1364.493,0.00025609,2]
[400579536,1767731445446,-53819.74898989,0.00025999,14]
[400579538,1767731445455,-2629.6,0.00026773,2]
[400579540,1767731445465,-4736.98,0.000268,7]
[400579542,1767731445476,-163.75394219,0.00027,2]